Cogmind - Beta 10.2 @@@ ROGUE MODE // 2021.10.18 @ 18:49:58 Player: Engy Result: Destroyed by G-47 Trooper with Particle Gun Performance ------------- Evolutions (0) 0 Regions Visited (1) 200 Robots Destroyed (12) 60 Value Destroyed (233) 233 Prototype IDs (0) 0 Alien Tech Used (0) 0 Bonus (0) 0 TOTAL SCORE: 493 Bonus ------- None Cogmind --------- Core Integrity 0/250 Matter 295/300 Energy 84/100 System Corruption 4% Temperature Cool (9) Movement Walking (120) Location -10/Materials Parts ------- > --- POWER (1) -------- (None) > --- PROPULSION (2) --- Aluminum Leg > --- UTILITY (2) ------ Small Storage Unit ECM Suite > --- WEAPON (2) ------- (None) > --- INVENTORY (6) ---- ECM Suite Peak State ------------ > --- POWER ------------ Ion Engine > --- PROPULSION ------- Light Treads Light Treads > --- UTILITY ---------- Small Storage Unit ECM Suite > --- WEAPON ----------- Small Laser Light Assault Rifle > --- INVENTORY -------- Ion Engine Aluminum Leg Aluminum Leg Wheel Wheel Light Assault Rifle [Rating: 7] Favorites ----------- Power Ion Engine Engine Ion Engine Propulsion Light Treads Treads Light Treads Leg Aluminum Leg Utility Small Storage Unit Device ECM Suite Storage Small Storage Unit Weapon Light Assault Rifle Energy Gun Small Laser Ballistic Gun Light Assault Rifle Special Weapon Mining Laser Build | -11 -10 ------- Run | Scr Mat Slots Evolved . | . . Power . | . . Propulsion . | . . Utility . | . . Weapon . | . . Parts Attached 9 | 3 6 Power 1 | . 1 Engine 1 | . 1 Core . | . . Reactor . | . . Propulsion 4 | 2 2 Treads 2 | 2 . Leg 2 | . 2 Wheel . | . . Hover . | . . Flight . | . . Utility 1 | . 1 Device 1 | . 1 Storage . | . . Processor . | . . Hackware . | . . Protection . | . . Artifact . | . . Weapon 3 | 1 2 Energy Gun 1 | 1 . Energy Cannon . | . . Ballistic Gun 1 | . 1 Ballistic Cannon . | . . Launcher . | . . Special Weapon 1 | . 1 Impact Weapon . | . . Slashing Weapon . | . . Piercing Weapon . | . . Special Melee Weapon . | . . Unidentified Prototypes . | . . Parts Lost 8 | . 8 Power 1 | . 1 Propulsion 3 | . 3 Utility . | . . Weapon 4 | . 4 Highest Loss Streak 5 | . 5 Average Slot Usage (%) 92 | . 92 Engine 12 | . 12 Treads 25 | . 25 Leg 1 | . 1 Device 13 | . 13 Storage 14 | . 14 Energy Gun 8 | . 8 Ballistic Gun 11 | . 11 Special Weapon 4 | . 4 Naked Turns . | . . Heaviest Build 12 | 11 12 Greatest Support 40 | 40 40 Greatest Overweight (x) . | . . Average Overweight (x) . | . . Largest Inventory Capacity 6 | 6 6 Average Capacity 6 | 6 6 Most Carried 6 | 6 6 Average Carried 4 | 6 4 Final Capacity 6 | 6 6 Final Carried 6 | 6 1 Class Distribution -------------------- 100% | Mutant Dominant Class ---------------- Mutant | -10/Materials Resources | -11 -10 ----------- Run | Scr Mat Matter Collected 303 | 236 67 Remotely . | . . Salvage Created 350 | 113 237 Parts 27 | 3 24 Haulers Intercepted . | . . Recyclers Shooed 1 | . 1 Parts Field Recycled . | . . Retrieved Matter . | . . Parts Self-Destructed . | . . Prevented . | . . Kills | -11 -10 ------- Run | Scr Mat Combat Hostiles Destroyed 10 | . 10 Guns 9 | . 9 Cannons 1 | . 1 Classes Destroyed 4 | 2 2 Tunneler 1 | 1 . Recycler 1 | 1 . Swarmer 5 | . 5 Grunt 5 | . 5 Best Kill Streak 5 | 1 5 Combat Bots Only 5 | . 5 Max Kills in Single Turn 2 | 1 2 Gunslinging 1 | . 1 Exploded . | . . Melee . | . . Uniques/NPCs Destroyed . | . . Combat | -11 -10 -------- Run | Scr Mat Damage Taken 1075 | . 1075 Core 262 | . 262 Absorbed by Shields . | . . Core Remaining (%) 100 | 100 . Volleys Fired 41 | 6 35 Largest 2 | 2 2 Hottest 120 | 60 120 Shots Fired 77 | 12 65 Gun 64 | 12 52 Cannon . | . . Launcher . | . . Special 13 | . 13 Kinetic 40 | 6 34 Thermal 37 | 6 31 Explosive . | . . Electromagnetic . | . . Robot Hit Streak 7 | 4 7 Robot Miss Streak 5 | 1 5 Penetration Max . | . . Secondary Targets 4 | . 4 Max Gunslinging Chain 1 | . 1 Shots Hit Robots 40 | 9 31 Core Hits 25 | 5 20 Critical Hits . | . . Critical Kills . | . . Critical Parts Destroyed . | . . Melee Attacks . | . . Impact . | . . Slashing . | . . Piercing . | . . Sneak Attacks . | . . Combat Hostiles . | . . Follow-up Attacks . | . . Damage Inflicted 515 | 99 416 Guns 417 | 99 318 Cannons . | . . Explosions . | . . Melee . | . . Ramming 2 | . 2 Kinetic 227 | 47 180 Thermal 286 | 52 234 Explosive . | . . Electromagnetic . | . . Impact . | . . Slashing . | . . Piercing . | . . Highest Corruption 4 | . 4 Average Corruption 3 | . 3 Corruption Purged . | . . Effects 11 | . 11 Message Errors 4 | . 4 Matter Fused 2 | . 2 Heat Flow Errors 2 | . 2 Parts Rejected 1 | . 1 Targeting Errors 2 | . 2 Overload Shots . | . . Overflow Damage 4 | . 4 Projectiles 4 | . 4 Explosions . | . . Melee . | . . Knockbacks . | . . Impact . | . . Kinetic . | . . Secondary . | . . Self-Inflicted Damage . | . . Shots . | . . Rammed 3 | . 3 Targets Rammed 3 | . 3 Kicked . | . . Crushed . | . . Highest Temperature 258 | 40 258 Average Temperature 106 | 16 115 Received Heat Transfer 417 | . 417 Effects 1 | . 1 Energy Bleed 1 | . 1 Siege Activations . | . . Robots Corrupted . | . . Combat Hostiles . | . . Parts Fried . | . . Impact Corruptions . | . . Robots Melted . | . . Combat Hostiles . | . . Parts Melted . | . . Heat Transferred 650 | 125 525 Parts Sabotaged . | . . Parts Stolen . | . . Parts Stripped . | . . Power Chain Reactions . | . . Missiles Intercepted . | . . Alert | -11 -10 ------- Run | Scr Mat Peak Influence 316 | 10 316 Initial 6 | . 6 Average 104 | 6 115 Maximum Alert Level 1 | . 1 Low Security (%) 85 | 100 83 Level 1 14 | . 16 Level 2 . | . . Level 3 . | . . Level 4 . | . . Level 5 . | . . High Security . | . . Max Security . | . . Squads Dispatched 2 | . 2 Investigation . | . . Extermination . | . . Reinforcement 2 | . 2 Assault . | . . Garrison . | . . Intercept . | . . Construction Impeded . | . . Haulers Reinforced . | . . Stealth | -11 -10 --------- Run | Scr Mat Distress Signals 4 | . 4 Communications Jammed . | . . Distress Signals . | . . Times Spotted 23 | . 23 Peak Tracking Total 7 | . 7 Tactical Retreats 2 | . 2 Traps | -11 -10 ------- Run | Scr Mat Traps Triggered 2 | . 2 Indirectly . | . . Trap Hack Attempts . | . . Triggered . | . . Disarmed . | . . Reprogrammed . | . . Reused . | . . Traps Extracted . | . . Installed . | . . Triggered . | . . Machines | -11 -10 ---------- Run | Scr Mat Machines Disabled . | . . Max in Single Turn . | . . Machines Sabotaged . | . . Garrisons Compromised . | . . Overloaded Fab Kills . | . . Fab Network Shutdowns . | . . Hacking | -11 -10 --------- Run | Scr Mat Machines Accessed 1 | . 1 Terminals . | . . Fabricators . | . . Repair Stations . | . . Recycling Units 1 | . 1 Scanalyzers . | . . Garrison Access . | . . Total Hacks 2 | . 2 Successful 1 | . 1 Failed 1 | . 1 Catastrophic . | . . Database Lockouts . | . . Manual . | . . Terminals . | . . Fabricators . | . . Repair Stations . | . . Recycling Units 2 | . 2 Scanalyzers . | . . Garrison Access . | . . Terminal Hacks . | . . Fabricator Hacks . | . . Repair Station Hacks . | . . Recycling Unit Hacks 1 | . 1 Report Inventory 1 | . 1 Scanalyzer . | . . Garrison Access Hacks . | . . Unauthorized Hacks . | . . Terminals . | . . Fabricators . | . . Repair Stations . | . . Recycling Units . | . . Scanalyzers . | . . Garrison Access . | . . Data Cores Recovered . | . . Used . | . . Hacking Detections 1 | . 1 Full Trace Events . | . . Feedback Events . | . . Feedback Blocked . | . . Robot Schematics Acquired . | . . Robots Built . | . . Matter . | . . Time . | . . Total Robot Build Rating . | . . Part Schematics Acquired . | . . Parts Built . | . . Matter . | . . Time . | . . Total Part Build Rating . | . . Parts Repaired . | . . Time . | . . Parts Recycled . | . . Recycled Matter . | . . Retrieved Matter . | . . Retrieved Components . | . . Parts Scanalyzed . | . . Part Schematics Acquired . | . . Parts Damaged . | . . Bothacking | -11 -10 ------------ Run | Scr Mat Used RIF Installer . | . . Robots Hacked . | . . Non-combat . | . . Combat . | . . Robot Hacks Applied . | . . Relay Couplers Released . | . . Robots Rewired . | . . Allies Hacked . | . . Hacks Repelled . | . . Allies | -11 -10 -------- Run | Scr Mat Total Allies . | . . Largest Group . | . . Highest-Rated Group . | . . Highest-Rated Ally . | . . Total Orders . | . . Ally Attacks . | . . Total Damage . | . . Kills . | . . Allies Corrupted . | . . Allies Melted . | . . Intel | -11 -10 ------- Run | Scr Mat Robot Analysis Total . | . . Derelict Logs Recovered . | . . Drone Launches . | . . Drone Recoveries . | . . Exploration | -11 -10 ------------- Run | Scr Mat Turns Passed 553 | 59 494 Spaces Moved 211 | 24 187 Core . | . . Treads 187 | 24 163 Legs 24 | . 24 Wheels . | . . Hover . | . . Flight . | . . Fastest Speed 120 | 160 120 Average Speed 155 | 160 154 Slowest Speed 160 | 160 160 Overloaded Moves . | . . Propulsion Burnouts . | . . Robots Hopped . | . . Cave-ins Triggered . | . . Exploration Rate (%) 19 | 3 35 Regions Visited 1 Branch Regions . Pre-discovered Areas . | . . Known Exits Taken . | . . Unknown Exits Taken 1 | 1 . Scrap Searched . | . . Spaces Dug . | . . Terrain Destroyed 4 | . 4 Melee . | . . Projectile 4 | . 4 AOE . | . . Terrain Rammed . | . . Walls Destroyed . | . . Machines Disabled . | . . Actions | -11 -10 --------- Run | Scr Mat Total 338 | 32 306 Wait 71 | . 71 Move 210 | 23 187 Hop . | . . Pick Up 2 | . 2 Fast Attach 1 | . 1 Attach 5 | . 5 Detach . | . . Swap 3 | 3 . Drop 2 | . 2 Fire 41 | 6 35 Melee . | . . Ram . | . . Kick 2 | . 2 Crush 1 | . 1 Escape Stasis . | . . Rewire . | . . Trap . | . . Miscellaneous . | . . Route ------- -11/Scrapyard -10/Materials (discovered 1 exit: [*Mat]) History --------- Turn | Location | Event 14 | -11/Scrapyard | Discovered new exit (range 3) 60 | -11/Scrapyard | Entered Materials 203 | -10/Materials | Discovered new exit (range 11) 312 | -10/Materials | Build established: Mutant 428 | -10/Materials | Lost 3 parts (1p2w) 497 | -10/Materials | Core integrity fell below 50% 537 | -10/Materials | Core integrity fell below 20% 554 | -10/Materials | Destroyed by G-47 Trooper with Particle Gun Last Messages --------------- 00469_ Lgt. Assault Rifle destroyed. 00475_ U-05 Engineer builds a Wall. 00478_ #SDGNG5 EGRBE7X5UAQ 00530_ Mining Laser destroyed. 00534_ Aluminum Leg destroyed. Map ----- +----------------------------------------------------+ | | | | | | | | | | | | | | | | | | | | | | | | | | | | | | | | | | | | | | | | | ???????????????????????????????????????????????? | | ???????????????????????????????????????????????? | | ???????????????????????????????????????????????? | | ???????????????######################??????????? | | ???????######### w #??????????? | | ####???# + g @ #??????????? | | #???# """ ##r ############# #??????????? | | ##### """ ## #?????# #????????????????? | | ! # # """ ## #?????# #????????????????? | | # < # ## #?????# #????????????????? | | "" # # """ ## ##????# #????????????????? | | "" + + """ # ###### """#????????????????? | | "" # # """ # # """#????????????????? | | # # # + """#????????????????? | | # # """ # ####%#* #????????????????? | | " # # """ ######?## # """#????????????????? | | Y" # # """ #???????# # """#????????????????? | | "" # # #???????# # """#????????????????? | | #### ########???????# # #????????????????? | | ????????# #######????????????????? | | ????????# #??????????????????????? | | ????????#%#??????????????????????? | | ##### ### ?????????#=#??????????????????????? | | #???# #???????????????#[#??????????????????????? | | #????+????????????????#%= ?????????????????????? | | #?????????????????????#[ ???????????????????? | | #?????????????????????# ?????????????????? | | #?????????????????????# ???????????????? | | #?????????????????????# #####??????????????? | | #?????????????????????## ##??????????????????? | +----------------------------------------------------+ Best States ------------- Heat Dissipation 25 Energy Generation 10 Energy Capacity 250 Matter Stores 300 Matter Capacity 300 Sight Range 16 Terrain Scan Density 10 ECM Strength 1 Evasion (%) 40 Recoil Reduction 2 Item Schematics ----------------- None Robot Schematics ------------------ None Fabricated ------------ Nothing Alien Tech Used ----------------- None Achievements -------------- None Challenges ------------ None Game ------ Seed XenonVortexExtractor Manual? 0 Play Time 00:08:23 Cumulative 19.1 hours Start 2021.10.18 @ 18:43:15 End 2021.10.18 @ 18:49:58 Sessions 1 Manual Loads 0 Difficulty Rogue Special Mode None Game No. 20 Rogue 20 Adventurer 0 Explorer 0 Win Type - Total 0 Types 0/0/0/0/0/0/0/0/0 Lore% 17 Gallery% 24 Achievement% 18 Wizard Run 0 Options --------- ASCII 0 Keyboard 0 Movement Mouse Keybinds 0 Fullscreen 2 Font 36/Smallcaps Map View 76x50 Tactical HUD 1 Map Filters NONE Filters NONE Steam 1 RUN: 557a7bc3-a1dd-4980-add4-ba0b85531636